bitfinex-derivatives/quotes_SOLF0:USTF0_20250720
["timestamp","ask_amount","ask_price","bid_price","bid_amount"]
[1753027498614,3.18,182.39,182.31,368.6]
[1753027498814,3.18,182.39,182.3,3.06]
[1753027499819,3.18,182.39,182.28,3.06]
[1753027500624,3.18,182.39,182.26,3.06]
[1753027500920,3.07,182.33,182.26,3.06]
[1753027501817,3.07,182.33,182.28,5.4837]
[1753027502020,3.07,182.33,182.28,8.5437]
[1753027502216,3.07,182.33,182.24,3.06]
[1753027502417,3.07,182.38,182.15,4.47585717]
[1753027502621,3.07,182.37,182.16,3.06]
[1753027502815,6.13961141,182.37,182.16,3.06]
[1753027503020,3.07,182.34,182.16,3.06]
[1753027503521,3.07,182.34,182.12,108.22]
[1753027503522,5.4845,182.26,182.19,5.4864]
[1753027503714,3.07,182.25,182.18,3.06]
[1753027504116,3.07,182.25,182.15,3.06]
[1753027504616,3.07,182.25,182.18,8.5467]
[1753027504817,3.07,182.25,182.18,3.06]
[1753027505121,3.07,182.25,182.2,8.5459]
[1753027505325,3.07,182.25,182.18,3.06]
[1753027506713,3.07,182.25,182.13,3.06]
[1753027506917,3.07,182.21,182.15,3.06]
[1753027507220,3.07,182.18,182.13,3.06]
[1753027507617,3.07,182.18,182.14,3.06]
[1753027507920,3.07,182.16,182.14,8.5479]
[1753027508217,3.07,182.14,182.13,3.06]
[1753027508413,3.07,182.12,182.11,3.06]
[1753027508619,3.07,182.12,182.1,3.06]
[1753027508916,3.07,182.11,182.08,3.06]
[1753027509118,3.07,182.11,182.09,3.06]
[1753027509415,2.2784319,182.25,182.1,3.06]
[1753027509616,2.2784319,182.17,182.12,5.4884]
[1753027509821,3.07,182.16,182.12,3.06]
[1753027510224,3.07,182.24,182.11,3.06]
[1753027510412,2.2784319,182.16,182.11,3.06]
[1753027510720,3.07,182.15,182.09,3.06]
[1753027511121,5.3484319,182.15,182.09,3.06]
[1753027511326,3.07,182.14,182.05,3.06]
[1753027511515,3.07,182.12,182.05,5.3384319]
[1753027511719,2.2784319,182.09,182.03,3.06]
[1753027511918,2.2784319,182.07,182.01,3.06]
[1753027512121,3.07,182.06,182.01,3.06]
[1753027512327,3.07,182.06,181.99,3.06]
[1753027513525,3.07,182.06,182.01,3.06]
[1753027513724,3.07,182.06,182.02,3.06]
[1753027514027,3.07,182.05,182.0,3.71802278]
[1753027514324,3.07,182.07,182.01,3.06]
[1753027514522,3.07,182.07,182.02,5.4913]
[1753027514724,3.07,182.07,182.01,3.06]
[1753027515323,3.07,182.05,181.99,3.06]
[1753027516113,3.07,182.05,182.0,3.06]
[1753027516519,3.07,182.09,182.02,3.06]
[1753027516718,3.07,182.12,182.06,3.06]
[1753027517021,3.07,182.12,182.08,3.06]
[1753027517226,3.07,182.12,182.1,3.06]
[1753027517417,3.07,182.11,182.08,3.06]
[1753027517616,3.07,182.1,182.02,109.86]
[1753027517820,3.07,182.1,182.08,3.06]
[1753027518020,3.07,182.12,182.07,3.06]
[1753027518225,144.53351615,182.13,182.08,3.71802278]
[1753027518427,3.07,182.14,182.09,3.06]
[1753027518619,3.07,182.16,182.14,3.06]
[1753027519024,3.07,182.15,182.13,3.06]
[1753027519223,3.71802278,182.2,182.13,3.06]
[1753027519421,3.07,182.14,182.13,3.06]
[1753027520021,3.07,182.14,182.12,5.4885]
[1753027520328,3.07,182.13,182.11,3.06]
[1753027520528,3.07,182.13,182.11,8.5486]
[1753027521024,3.07,182.15,182.1,3.71802278]
[1753027521230,3.07,182.15,182.13,3.06]
[1753027521432,3.71802278,182.22,182.11,3.06]
[1753027521629,368.86,182.26,182.09,110.24]
[1753027521630,3.07,182.21,182.13,3.06]
[1753027521832,3.07,182.21,182.14,3.71802278]
[1753027522131,368.86,182.26,182.14,3.71802278]
[1753027522132,3.07,182.2,182.17,3.06]
[1753027522322,3.07,182.19,182.17,3.06]
[1753027522527,3.07,182.18,182.17,3.06]
[1753027523025,3.71802278,182.24,182.14,3.06]
[1753027523226,3.07,182.19,182.14,3.06]
[1753027523532,3.07,182.19,182.17,5.487]
[1753027523732,3.07,182.18,182.16,3.06]
[1753027524031,3.07,182.17,182.14,3.06]
[1753027524229,3.07,182.17,182.15,3.06]
[1753027524428,3.07,182.17,182.15,8.5475]
[1753027524731,3.07,182.16,182.15,3.06]
[1753027525025,5.4861,182.2,182.13,8.5479]
[1753027525234,3.07,182.19,182.13,8.5479]
[1753027525526,3.07,182.18,182.13,3.06]
[1753027526620,368.86,182.26,182.15,3.71802278]
[1753027526621,3.07,182.23,182.15,3.71802278]
[1753027526821,3.07,182.23,182.16,3.06]
[1753027527028,3.07,182.23,182.17,6.77802278]
[1753027527224,3.07,182.23,182.18,5.4865]
[1753027527430,3.07,182.23,182.18,8.5465]
[1753027527731,3.07,182.23,182.19,5.4863]
[1753027527934,3.07,182.23,182.18,3.06]
[1753027528231,3.07,182.23,182.15,3.71802278]
[1753027528232,3.07,182.23,182.16,2.99]
[1753027528531,5.4852,182.23,182.17,5.4868]
[1753027528726,3.07,182.22,182.13,3.71802278]
[1753027528931,3.07,182.22,182.14,2.99]
[1753027529127,3.07,182.22,182.18,8.4766]
[1753027529334,3.07,182.22,182.18,2.99]
[1753027529529,3.07,182.22,182.14,2.99]
[1753027529830,3.07,182.2,182.15,8.4775]
[1753027530021,3.07,182.2,182.13,3.71802278]
[1753027530222,3.07,182.19,182.15,3.71802278]
[1753027530430,3.07,182.19,182.18,2.99]
[1753027530626,3.07,182.23,182.18,2.99]
[1753027530827,3.07,182.22,182.19,2.99]
[1753027531031,3.07,182.21,182.19,2.99]
[1753027531232,3.07,182.21,182.19,8.4762]
[1753027531434,6.78802278,182.25,182.17,2.99]
[1753027531632,3.07,182.24,182.17,2.99]
[1753027531832,3.07,182.23,182.17,2.99]
[1753027532333,3.07,182.2,182.14,2.99]
[1753027532928,3.71802278,182.21,182.12,2.99]
[1753027532929,3.07,182.18,182.12,2.99]
[1753027533328,368.86,182.26,182.12,2.99]
[1753027533534,3.07,182.2,182.12,2.99]
[1753027533928,5.4864,182.19,182.14,5.4877]
[1753027534130,3.07,182.17,182.15,2.99]
[1753027534329,396.2927,182.36,182.19,5.4862]
[1753027534526,3.07,182.22,182.2,2.99]
[1753027535125,16.45,182.34,182.21,3.71802278]
[1753027535126,3.07,182.34,182.21,3.71802278]
[1753027535333,3.07,182.34,182.24,2.99]
[1753027535526,3.71802278,182.35,182.25,8.4744]
[1753027535527,3.07,182.3,182.25,8.4744]
[1753027535927,3.71802278,182.33,182.23,3.71802278]
[1753027536127,3.07,182.3,182.19,2.99]
[1753027536331,3.07,182.26,182.19,2.99]
[1753027536531,3.07,182.26,182.17,2.99]
[1753027536732,5.4851,182.24,182.19,5.4864]
[1753027536937,3.07,182.26,182.19,2.99]
[1753027537236,3.07,182.23,182.19,8.4763]
[1753027537430,3.07,182.22,182.2,2.99]
[1753027537835,5.4852,182.23,182.18,8.4766]
[1753027538036,3.07,182.23,182.13,2.99]
[1753027538542,3.07,182.2,182.13,2.99]
[1753027538934,5.4861,182.2,182.15,8.4775]
[1753027539129,3.07,182.18,182.15,5.4875]
[1753027539330,3.07,182.18,182.16,2.99]
[1753027539734,3.07,182.18,182.17,2.99]
[1753027540037,3.07,182.18,182.13,2.99]
[1753027540240,3.07,182.19,182.15,8.4774]
[1753027540639,3.07,182.18,182.15,8.4774]
[1753027541341,3.07,182.21,182.15,2.99]
[1753027541541,3.07,182.21,182.14,5.4878]
[1753027541942,3.07,182.2,182.15,5.31352128]
[1753027542140,3.07,182.2,182.16,5.31352128]
[1753027542443,3.07,182.2,182.17,5.31352128]
[1753027542637,3.07,182.2,182.18,5.31352128]
[1753027542838,3.07,182.2,182.19,5.31352128]
[1753027545542,6.78802278,182.2,182.19,5.31352128]
[1753027545945,6.78802278,182.2,182.1,111.04]
[1753027545946,6.78802278,182.2,182.12,2.99]
[1753027546242,3.07,182.16,182.14,5.4877]
[1753027546445,3.71802278,182.19,182.15,2.99]
[1753027546746,3.71802278,182.19,182.16,2.99]
[1753027548049,3.71802278,182.19,182.15,2.99]
[1753027548546,3.07,182.18,182.15,2.99]
[1753027548746,3.07,182.17,182.15,2.99]
[1753027549248,3.07,182.17,182.15,8.4775]
[1753027549448,3.07,182.17,182.16,2.99]
[1753027550148,3.07,182.2,182.16,2.99]
[1753027550349,3.07,182.22,182.16,2.99]
[1753027550745,3.07,182.22,182.19,5.4863]
[1753027550945,3.07,182.22,182.2,2.99]
[1753027551251,3.07,182.21,182.2,2.99]
[1753027551446,3.07,182.23,182.16,3.71802278]
[1753027551647,3.07,182.23,182.17,2.99]
[1753027552445,3.07,182.23,182.19,5.4862]
[1753027552647,3.07,182.23,182.18,2.99]
[1753027552850,3.07,182.21,182.14,2.99]
[1753027553846,3.71802278,182.24,182.14,2.99]
[1753027553847,3.07,182.23,182.14,2.99]
[1753027554053,3.07,182.22,182.19,5.4864]
[1753027554254,3.07,182.22,182.21,2.99]
[1753027554449,3.71802278,182.24,182.19,2.99]
[1753027554648,3.07,182.23,182.18,5.4866]
[1753027554847,3.07,182.19,182.11,2.99]
[1753027555047,3.07,182.18,182.16,2.99]
[1753027555260,3.07,182.18,182.17,2.99]
[1753027556448,3.07,182.2,182.17,2.99]
[1753027556646,3.07,182.21,182.13,3.71802278]
[1753027556855,3.07,182.21,182.14,2.99]
[1753027557855,3.07,182.21,182.18,5.4865]
[1753027558063,2.94,182.2,182.19,3.25]
[1753027558652,3.71802278,182.24,182.17,3.25]
[1753027558954,2.94,182.18,182.17,8.737]
[1753027559256,2.94,182.18,182.17,3.25]
[1753027559650,2.94,182.17,182.15,3.25]
[1753027559856,2.94,182.16,182.15,3.25]
[1753027560256,2.94,182.18,182.11,3.71802278]
[1753027560454,2.94,182.23,182.14,3.25]
[1753027560655,2.94,182.23,182.19,5.4861]
[1753027560851,2.94,182.23,182.1,111.04]
[1753027560852,2.94,182.25,182.17,3.25]
[1753027561053,2.94,182.3,182.22,3.25]
[1753027561254,2.94,182.31,182.22,3.71802278]
[1753027561558,2.94,182.31,182.23,3.25]
[1753027561760,2.94,182.31,182.25,5.4845]
[1753027562057,2.94,182.32,182.24,3.71802278]
[1753027562254,2.94,182.32,182.27,5.4839]
[1753027562453,2.94,182.3,182.28,3.25]
[1753027562658,2.94,182.3,182.24,3.71802278]
[1753027562862,2.94,182.3,182.29,3.25]
[1753027563257,2.94,182.29,182.27,8.7338]
[1753027563557,2.94,182.29,182.27,3.25]
[1753027563757,2.94,182.32,182.24,3.25]
[1753027563960,2.94,182.31,182.24,3.25]
[1753027564158,2.94,182.31,182.25,5.4845]
[1753027564354,2.94,182.31,182.24,3.25]
[1753027564860,8.4229,182.31,182.25,5.4844]
[1753027565064,2.94,182.31,182.25,5.4844]
[1753027565263,2.94,182.31,182.24,3.25]
[1753027565561,2.94,182.31,182.27,3.25]
[1753027565752,2.94,182.31,182.22,3.25]
[1753027565954,2.94,182.31,182.26,5.484]
[1753027566161,2.94,182.31,182.24,3.25]
[1753027566661,2.94,182.3,182.25,5.4845]
[1753027566850,2.94,182.3,182.25,8.7345]
[1753027567056,5.4832,182.3,182.25,3.25]
[1753027567255,2.94,182.29,182.25,3.25]
[1753027567861,2.94,182.28,182.24,5.4847]
[1753027568064,2.94,182.28,182.16,3.25]
[1753027568065,2.94,182.27,182.16,3.25]
[1753027568365,378.08941712,182.36,182.16,3.25]
[1753027568366,2.94,182.22,182.16,3.25]
[1753027568952,2.94,182.2,182.11,3.71802278]
[1753027569159,2.94,182.2,182.12,3.25]
[1753027569559,2.94,182.2,182.15,3.25]
[1753027570162,2.94,182.2,182.13,3.71802278]
[1753027570358,2.94,182.2,182.19,3.25]
[1753027570561,3.71802278,182.24,182.15,3.71802278]
[1753027570757,2.94,182.24,182.16,3.25]
[1753027573261,2.94,182.3,182.22,3.25]
[1753027573660,8.4232,182.3,182.25,5.4843]
[1753027573859,2.94,182.3,182.22,3.25]
[1753027574468,2.94,182.3,182.23,3.71802278]
[1753027574668,2.94,182.32,182.29,5.4834]
[1753027574866,2.94,182.32,182.26,3.25]
[1753027575164,2.94,182.34,182.26,3.25]
[1753027575369,2.94,182.34,182.3,5.483]
[1753027575563,2.94,182.34,182.3,8.733]
[1753027575764,3.71802278,182.36,182.32,5.4825]
[1753027575961,2.94,182.32,182.3,3.25]
[1753027576264,2.94,182.35,182.3,8.7329]
[1753027576461,2.94,182.35,182.3,3.25]
[1753027577066,5.4817,182.35,182.28,3.25]
[1753027577369,2.94,182.34,182.28,3.25]
[1753027577779,2.94,182.34,182.3,5.483]
[1753027577970,2.94,182.34,182.3,8.733]
[1753027578369,2.94,182.34,182.31,5.4827]
[1753027578862,2.94,182.34,182.3,8.733]
[1753027579472,2.94,182.34,182.3,3.25]
[1753027579667,2.94,182.32,182.28,3.25]
[1753027579867,9.85763419,182.38,182.16,376.98337436]
[1753027579868,5.484,182.27,182.22,3.25]
[1753027580067,2.94,182.25,182.17,3.25]
[1753027580273,2.94,182.27,182.18,3.71802278]
[1753027580570,2.94,182.27,182.23,3.25]
[1753027580971,3.71802278,182.26,182.23,3.25]
[1753027581172,6.65802278,182.26,182.24,3.25]
[1753027581562,6.65802278,182.26,182.24,8.7348]
[1753027581868,2.94,182.25,182.24,3.25]
[1753027582064,6.65802278,182.3,182.25,5.4844]
[1753027582265,9.85763419,182.38,182.23,3.25]
[1753027582470,2.94,182.37,182.28,3.71802278]
[1753027582679,8.421,182.37,182.32,3.25]
[1753027582972,5.481,182.37,182.33,3.25]
[1753027583173,2.94,182.36,182.31,3.25]
[1753027583372,2.94,182.36,182.32,3.25]
[1753027583574,2.94,182.35,182.32,3.25]
[1753027583773,2.94,182.34,182.29,3.25]
[1753027583976,2.94,182.36,182.29,3.25]
[1753027584378,148.5811065,182.39,182.32,3.25]
[1753027585369,148.5811065,182.39,182.24,4.50535158]
[1753027585567,148.5811065,182.39,182.37,3.25]
[1753027585766,2.94,182.38,182.35,3.25]
[1753027585971,145.6411065,182.39,182.34,5.4817]
[1753027585972,2.94,182.37,182.36,3.25]
[1753027586369,148.5811065,182.39,182.37,3.25]
[1753027586570,2.94,182.52,182.38,3.25]
[1753027586879,2.94,182.52,182.38,6.96802278]
[1753027587070,2.94,182.47,182.39,3.25]
[1753027587478,2.94,182.46,182.43,3.25]
[1753027587673,2.94,182.46,182.44,3.25]
[1753027588671,3.71802278,182.49,182.42,3.05]
[1753027588672,8.6177,182.48,182.42,3.05]
[1753027588880,3.14,182.48,182.42,3.05]
[1753027589171,5.4777,182.48,182.42,3.05]
[1753027589477,5.4777,182.48,182.43,3.05]
[1753027589478,3.14,182.46,182.43,3.05]
[1753027589778,8.6182,182.47,182.43,3.05]
[1753027589969,3.14,182.45,182.43,3.05]
[1753027590175,3.71802278,182.47,182.38,3.71802278]
[1753027590375,5.4783,182.46,182.39,3.05]
[1753027590575,3.14,182.45,182.39,3.05]
[1753027590875,3.71802278,182.43,182.36,3.05]
[1753027591082,3.14,182.42,182.36,3.05]
[1753027591574,3.14,182.39,182.36,3.05]
[1753027591769,3.14,182.39,182.37,3.05]
[1753027592782,3.14,182.39,182.32,3.71802278]
[1753027592979,3.14,182.39,182.38,3.05]
[1753027593181,3.14,182.38,182.36,3.05]
[1753027593379,3.14,182.37,182.36,3.05]
[1753027593584,3.14,182.39,182.34,3.05]
[1753027593780,5.4807,182.38,182.34,3.05]
[1753027593973,3.14,182.37,182.3,3.05]
[1753027594376,3.14,182.37,182.31,5.4827]
[1753027594581,3.14,182.37,182.31,3.05]
[1753027595784,3.14,182.37,182.31,8.5326]
[1753027596081,3.14,182.35,182.3,3.05]
[1753027596280,3.14,182.35,182.32,5.4825]
[1753027596482,3.14,182.36,182.34,3.05]
[1753027596986,3.14,182.37,182.29,368.66]
[1753027597185,3.14,182.37,182.32,3.05]
[1753027597386,3.14,182.35,182.32,3.05]
[1753027597586,3.14,182.33,182.32,3.05]
[1753027598084,3.71802278,182.36,182.19,368.5]
[1753027598285,3.14,182.31,182.3,3.05]
[1753027598480,3.14,182.31,182.24,3.05]
[1753027598682,3.14,182.32,182.27,5.4838]
[1753027598885,3.14,182.32,182.24,3.05]
[1753027599279,6.85802278,182.34,182.23,3.71802278]
[1753027599481,3.71802278,182.36,182.28,3.05]
[1753027599682,3.14,182.37,182.33,5.4822]
[1753027599986,3.14,182.4,182.34,3.05]
[1753027600481,3.71802278,182.35,182.21,4.50535158]
[1753027600787,3.14,182.31,182.22,3.05]
[1753027601280,3.14,182.31,182.24,3.05]
[1753027601484,3.14,182.31,182.23,3.71802278]
[1753027601684,3.14,182.31,182.28,3.05]
[1753027601885,3.14,182.3,182.28,3.05]
[1753027602086,3.14,182.33,182.3,3.05]
[1753027602296,3.71802278,182.35,182.31,3.05]
[1753027602479,3.14,182.32,182.29,3.05]
[1753027602878,3.14,182.32,182.3,3.05]
[1753027603584,160.09814457,182.42,182.26,3.05]
[1753027603788,6.85802278,182.37,182.32,5.4824]
[1753027603985,3.14,182.36,182.33,3.05]
[1753027604291,3.71802278,182.37,182.2,15.47705158]
[1753027604492,3.14,182.34,182.25,3.71802278]
[1753027604685,3.14,182.34,182.26,3.05]
[1753027604890,3.14,182.34,182.32,3.05]
[1753027605086,3.14,182.34,182.33,3.05]
[1753027605291,6.85802278,182.37,182.34,3.05]
[1753027605492,3.14,182.36,182.34,3.05]
[1753027605693,3.14,182.35,182.34,3.05]
[1753027605991,3.14,182.35,182.26,3.05]
[1753027606189,3.14,182.35,182.33,3.05]
[1753027606397,3.14,182.35,182.34,3.05]
[1753027606688,3.14,182.35,182.28,3.71802278]
[1753027606893,3.14,182.35,182.29,3.05]
[1753027607290,3.14,182.35,182.25,3.71802278]
[1753027607490,6.85802278,182.37,182.3,3.05]
[1753027607797,3.71802278,182.39,182.33,5.482]
[1753027607994,3.14,182.36,182.34,3.05]
[1753027608393,3.14,182.41,182.32,3.71802278]
[1753027608597,3.14,182.41,182.33,3.05]
[1753027609390,3.14,182.41,182.36,5.4811]
[1753027609591,3.14,182.4,182.34,3.05]
[1753027610197,5.4806,182.39,182.34,3.05]
[1753027610495,3.14,182.38,182.34,3.05]
[1753027610893,5.4802,182.4,182.34,3.05]
[1753027611097,3.14,182.38,182.29,3.71802278]
[1753027611292,3.71802278,182.41,182.29,3.71802278]
[1753027611293,3.71802278,182.41,182.36,3.05]
[1753027611496,3.14,182.4,182.35,5.4814]
[1753027611698,5.4801,182.4,182.35,8.5314]
[1753027611896,3.71802278,182.38,182.32,5.4824]
[1753027612197,160.09814457,182.42,182.29,3.05]
[1753027612198,3.71802278,182.35,182.29,3.05]
[1753027612393,3.14,182.33,182.3,3.05]
[1753027612600,3.14,182.32,182.3,3.05]
[1753027612995,3.14,182.32,182.24,3.71802278]
[1753027613202,3.14,182.31,182.24,3.71802278]
[1753027613396,3.14,182.31,182.3,3.05]
[1753027614200,3.14,182.33,182.3,3.05]
[1753027614405,3.14,182.32,182.31,3.05]
[1753027614805,3.14,182.32,182.25,3.05]
[1753027614999,3.14,182.31,182.25,3.05]
[1753027615404,3.14,182.31,182.24,3.05]
[1753027615607,3.71802278,182.38,182.24,3.05]
[1753027615608,3.14,182.26,182.24,3.05]
[1753027615809,3.14,182.28,182.26,5.4842]
[1753027616012,3.14,182.29,182.27,3.05]
[1753027616207,3.14,182.29,182.28,3.05]
[1753027616816,3.14,182.29,182.26,3.05]
[1753027617015,3.14,182.28,182.26,3.05]
[1753027617913,3.14,182.28,182.27,5.4839]
[1753027618506,3.14,182.28,182.27,8.7339]
[1753027618712,3.13,182.29,182.28,5.4836]
[1753027619517,3.13,182.3,182.2,3.25]
[1753027619819,3.13,182.28,182.2,3.25]
[1753027620114,3.13,182.28,182.27,5.484]
[1753027620313,6.84802278,182.3,182.27,3.25]
[1753027620509,3.13,182.29,182.21,3.25]
[1753027620709,3.71802278,182.27,182.21,3.25]
[1753027620915,3.71802278,182.27,182.23,3.25]
[1753027620916,3.13,182.25,182.23,3.25]
[1753027621312,3.13,182.25,182.24,5.4849]
[1753027621515,3.13,182.24,182.16,111.32]
[1753027621712,3.13,182.22,182.17,3.25]
[1753027621918,6.13961141,182.31,182.17,3.25]
[1753027621919,3.71802278,182.2,182.17,3.25]
[1753027622116,3.71802278,182.2,182.16,111.32]
[1753027622117,3.71802278,182.27,182.16,111.32]
[1753027622321,3.71802278,182.27,182.24,3.25]
[1753027622514,3.71802278,182.29,182.21,3.25]
[1753027622718,3.71802278,182.31,182.21,3.25]
[1753027622917,3.71802278,182.38,182.27,3.25]
[1753027623122,3.71802278,182.34,182.27,3.25]
[1753027623323,3.71802278,182.34,182.31,5.4826]
[1753027623525,3.71802278,182.35,182.3,3.25]
[1753027623819,3.71802278,182.32,182.27,3.25]
[1753027624017,3.71802278,182.38,182.25,3.25]
[1753027624018,3.71802278,182.3,182.25,3.25]
[1753027624213,3.02,182.27,182.25,3.25]
[1753027624415,6.73802278,182.3,182.26,3.25]
[1753027624625,3.02,182.28,182.26,3.25]
[1753027624814,3.71802278,182.3,182.27,5.4838]
[1753027625019,3.02,182.29,182.27,5.4838]
[1753027625422,3.02,182.37,182.22,3.71802278]
[1753027625726,6.73802278,182.33,182.23,3.25]
[1753027626023,6.73802278,182.33,182.32,5.4825]
[1753027626024,3.02,182.33,182.32,5.4825]
[1753027626224,3.71802278,182.35,182.32,5.4825]
[1753027626225,6.73802278,182.35,182.32,3.25]
[1753027626426,3.02,182.34,182.32,3.25]
[1753027627326,3.02,182.34,182.33,5.4822]
[1753027628325,3.02,182.34,182.32,8.7324]
[1753027628524,3.02,182.34,182.32,3.25]
[1753027629320,3.02,182.34,182.33,5.4822]
[1753027629520,3.02,182.34,182.22,3.25]
[1753027629716,3.02,182.34,182.25,3.25]
[1753027630623,3.02,182.34,182.33,5.4822]
[1753027631227,3.02,182.34,182.32,5.4825]
[1753027631429,3.71802278,182.35,182.32,5.4825]
[1753027631430,3.02,182.33,182.32,5.4825]
[1753027632121,3.02,182.34,182.31,5.4827]
[1753027632321,3.02,182.34,182.29,3.25]
[1753027632524,3.71802278,182.32,182.29,3.25]
[1753027632829,3.02,182.3,182.24,3.25]
[1753027633229,6.73802278,182.3,182.24,3.25]
[1753027633731,6.73802278,182.3,182.28,5.4835]
[1753027634027,3.02,182.29,182.21,3.25]
[1753027634227,3.71802278,182.28,182.21,3.25]
[1753027634526,3.71802278,182.28,182.19,368.66]
[1753027634527,3.02,182.27,182.26,5.4841]
[1753027634728,3.02,182.29,182.26,3.25]
[1753027634924,3.02,182.29,182.28,5.4837]
[1753027635128,3.71802278,182.3,182.21,3.71802278]
[1753027635328,3.02,182.31,182.3,3.25]
[1753027635624,3.02,182.31,182.28,3.25]
[1753027636123,3.02,182.31,182.29,3.25]
[1753027636532,3.02,182.31,182.3,5.4831]
[1753027636926,3.02,182.31,182.29,8.7333]
[1753027637229,3.02,182.33,182.29,3.25]
[1753027637629,3.02,182.33,182.31,8.7325]
[1753027638026,3.02,182.33,182.2,10.9718]
[1753027638027,3.02,182.31,182.27,5.4838]
[1753027638332,3.02,182.31,182.25,3.25]
[1753027638724,3.02,182.31,182.28,5.4836]
[1753027639020,6.73802278,182.32,182.21,3.25]
[1753027639426,3.02,182.31,182.21,3.25]
[1753027639630,3.02,182.31,182.21,6.96802278]
[1753027639831,3.02,182.31,182.22,3.25]
[1753027640131,6.13961141,182.37,182.22,3.25]
[1753027640132,3.02,182.28,182.22,3.25]
[1753027640832,3.02,182.24,182.2,3.25]
[1753027641026,3.02,182.23,182.22,5.4855]
[1753027641226,3.02,182.25,182.22,3.25]
[1753027641733,3.02,182.24,182.22,8.7354]
[1753027642324,3.71802278,182.26,182.22,5.4854]
[1753027642524,3.02,182.24,182.23,5.4851]
[1753027642831,3.02,182.3,182.2,3.71802278]
[1753027643031,3.02,182.3,182.28,3.25]
[1753027643032,6.73802278,182.3,182.28,3.25]
[1753027643226,3.02,182.29,182.28,3.25]
[1753027643432,3.02,182.29,182.21,3.25]
[1753027643633,3.02,182.25,182.15,6.96802278]
[1753027643933,9.20941712,182.35,182.21,3.25]
[1753027643934,3.02,182.3,182.21,3.25]
[1753027644329,3.71802278,182.31,182.21,3.25]
[1753027644532,3.71802278,182.33,182.24,3.25]
[1753027644731,3.71802278,182.35,182.26,3.25]
[1753027645130,3.71802278,182.35,182.32,5.4824]
[1753027645332,3.02,182.37,182.28,3.25]
[1753027645532,3.71802278,182.39,182.28,3.25]
[1753027645936,3.02,182.4,182.3,3.25]
[1753027646133,3.02,182.37,182.35,5.4815]
[1753027646429,3.02,182.36,182.35,5.4815]
[1753027646639,3.02,182.37,182.35,8.7315]
[1753027646938,3.71802278,182.4,182.37,3.25]
[1753027647138,6.73802278,182.4,182.38,3.25]
[1753027647341,163.81616735,182.42,182.32,3.25]